[Event "Romanian Superleague 2022"]
[Site "Oradea"]
[Date "2022.09.23"]
[Round "3.21"]
[White "Bonte, Andrei-Mihai"]
[Black "Mendonca, Leon Luke"]
[Result "0-1"]
[ECO "D55"]
[WhiteElo "2339"]
[BlackElo "2558"]
[Annotator "TA"]
[PlyCount "102"]
[EventDate "2022.09.21"]
[EventType "team-tourn"]
[EventCountry "ROU"]
[SourceTitle "playchess.com"]
[Source "ChessBase"]
[SourceQuality "1"]
[TimeControl "40/5400+30:1800+30"]

{[%evp 17,102,-3,0,-1,9,0,0,0,9,0,0,0,0,-7,0,0,0,-8,-8,-14,-17,-29,-16,-32,-18,-36,0,-25,-26,-25,-25,-68,-47,-52,-52,-58,-60,-65,-39,-51,-63,-81,-71,-74,-71,-111,-95,-103,-99,-107,-77,-103,-91,-94,-93,-158,-45,-137,-106,-114,0,-157,0,-156,-133,-147,-106,-114,-106,-106,-106,-106,-106,-446,-423,-503,-165,-663,-678,-599,-481,-443,-374,-405,-371,-29989,-29990]} 1. d4 {[%emt 0:00:08]} Nf6 {[%emt 0:00:14]} 2. c4 {[%emt 0:01:14]} e6 {[%emt 0:00:07]} 3. Nc3 {[%emt 0:00:05]} d5 {[%emt 0:01:47]} 4. Bg5 {[%emt 0:02:30]} Be7 {[%emt 0:02:50]} 5. e3 {[%emt 0:00:55]} O-O {[%emt 0:00:46]} 6. Nf3 {[%emt 0:00:05]} h6 {[%emt 0:01:42]} 7. Bxf6 {[%emt 0:07:40]} Bxf6 {[%emt 0:00:12]} 8. cxd5 {[%emt 0:00:31]} exd5 {[%emt 0:00:07]} 9. Be2 {[%emt 0:00:03]} c6 {[%emt 0:05:41]} 10. Qc2 {[%emt 0:01:11] D55: Queen's Gambit Declined: 4 Bg5 Be7: Lines without ...h6 and 6...h6 7 Bxf6.} g6 $5 {[%emt 0:09:01][%mdl 4] Leaves trodden paths.} 11. Bd3 {[%emt 0:07:17]} Bg7 {[%emt 0:03:09]} 12. O-O {[%emt 0:00:42] [#] The position is equal.} Be6 $146 {[%emt 0:04:15]} ({Predecessor:} 12... Qd6 13. Rab1 a5 14. a3 Bg4 15. Nd2 Nd7 16. b4 axb4 17. axb4 b5 18. h3 Be6 {1-0 (50) Hammes,M (2377)-Kargoll,P (2260) Germany 2003}) 13. Ne2 {[%emt 0:14:21]} Qd6 {[%emt 0:07:15]} 14. Rab1 {[%emt 0:02:51]} a5 {[%emt 0:01:22]} 15. a3 {[%emt 0:02:07]} Na6 {[%emt 0:05:15][%cal Bb8a6,Ba6c7,Bc7a8,Ba8b6,Bb6c4][%mdl 32]} 16. Rfc1 {[%emt 0:07:23]} Rfe8 {[%emt 0:04:06]} 17. Qa4 {[%emt 0:06:15]} Nc7 {[%emt 0:03:42]} 18. Qc2 {[%emt 0:01:06]} Bd7 {[%emt 0:02:43]} 19. Nf4 {[%emt 0:02:11][%cal Be2f4,Bf4d3,Bd3c5][%mdl 32]} a4 {[%emt 0:04:08]} 20. Ra1 {[%emt 0:07:03]} Ra7 {[%emt 0:02:01]} 21. h3 {[%emt 0:02:23]} b5 {[%emt 0:17:46]} 22. Be2 {[%emt 0:05:29]} Na8 {[%emt 0:01:33]} 23. Nd3 {[%emt 0:00:39]} Nb6 {[%emt 0:01:00]} 24. b4 {[%emt 0:07:39]} Nc4 {[%emt 0:06:11]} (24... axb3 $5 25. Qxb3 Rea8 $17) 25. Nc5 {[%emt 0:01:27][%cal Re2c4]} Bf5 {[%emt 0:01:40]} 26. Bd3 {[%emt 0:00:08]} Bxd3 {[%emt 0:02:28]} 27. Qxd3 {[%emt 0:00:19]} Rae7 {[%emt 0:03:31]} 28. Re1 {[%emt 0:04:47]} f5 {[%emt 0:02:26]} 29. Re2 {[%emt 0:09:36]} Rf7 {[%emt 0:01:08]} 30. Rae1 {[%emt 0:00:53]} g5 {[%emt 0:03:35]} 31. Nd2 {[%emt 0:00:47]} Qf6 {[%emt 0:01:00] Black is more active.} 32. Nxc4 {[%emt 0:00:49]} dxc4 {[%emt 0:00:03]} 33. Qd1 {[%emt 0:01:42]} Rfe7 {[%emt 0:02:42]} 34. Rd2 {[%emt 0:00:44]} Qd6 {[%emt 0:01:07]} 35. Qc2 {[%emt 0:02:57]} Qd5 {[%emt 0:00:14]} 36. Rde2 {[%emt 0:00:32] [#]} (36. Qd1 $142) 36... Qf7 {[%emt 0:00:35]} (36... h5 $1 $17 {Threatens to win with ...g4.} 37. Kh2 Bf6) 37. Kh1 {[%emt 0:00:29]} (37. e4 $1 $15) 37... Bh8 {[%emt 0:00:50]} 38. Kg1 {[%emt 0:01:01]} Bg7 {[%emt 0:00:04]} 39. Kh1 $1 {[%emt 0:00:08]} Qd5 {[%emt 0:00:36]} 40. Kg1 {[%emt 0:00:00]} Kh8 {[%emt 0:00:00]} 41. Kh1 {[%emt 0:07:15]} Qf7 {[%emt 0:11:21]} 42. Kg1 {[%emt 0:01:46]} Rf8 {[%emt 0:08:03]} 43. Kh1 {[%emt 0:02:06]} g4 {[%emt 0:06:51] aiming for ...gxh3.} 44. h4 {[%emt 0:02:20]} Rfe8 {[%emt 0:02:01][%cal Og4g3,Bf8e8,Be8e3,Be3g3][%mdl 32]} 45. Rd2 $2 {[%emt 0:14:03][%mdl 8192] Loses the game.} (45. Kh2 $17) 45... g3 $19 {[%emt 0:01:05] Strongly threatening ...f4.} 46. fxg3 {[%emt 0:02:22]} Rxe3 {[%emt 0:00:30]} (46... Qg6 47. Rde2 Qxg3 48. Qxf5 {[#]} Bxd4 $1 {[%mdl 512]}) 47. Rxe3 (47. Rde2 Rxe2 48. Rxe2) 47... Rxe3 {[%emt 0:00:01]} 48. Rf2 {[%emt 0:01:08]} Rxg3 {[%emt 0:01:17]} 49. Rxf5 {[%emt 0:00:10]} Qe7 {[%emt 0:00:35]} 50. Rf4 {[%emt 0:00:36]} Rxa3 {[%emt 0:01:32] ( -> ...Qe1+)} ({Stronger than} 50... Qe1+ 51. Kh2 $17) 51. Qf5 $2 {[%emt 0:01:16]} (51. Re4 $19 Ra1+ 52. Kh2 Qd6+ 53. g3) 51... Qe1+ {[%emt 0:03:52] Weighted Error Value: White=0.43/Black=0.32} 0-1

[Event "Romanian Superleague 2022"]
[Site "Oradea"]
[Date "2022.09.23"]
[Round "3.22"]
[White "Ghimpu, Samuel-Timotei"]
[Black "Ognean, Mihnea-Ionut"]
[Result "1/2-1/2"]
[ECO "B12"]
[WhiteElo "2434"]
[BlackElo "2303"]
[Annotator "TA"]
[PlyCount "83"]
[EventDate "2022.09.21"]
[EventType "team-tourn"]
[EventCountry "ROU"]
[SourceTitle "playchess.com"]
[Source "ChessBase"]
[SourceQuality "1"]
[TimeControl "40/5400+30:1800+30"]

{[%evp 9,83,29,45,34,43,10,6,-12,-15,-11,-11,-11,-13,-14,-5,-22,12,6,29,-19,17,11,33,0,10,0,0,-70,-55,-117,-72,-95,-97,-249,-59,-135,-125,-133,-139,-143,-137,-131,-139,-353,-346,-654,-627,-506,-342,-342,-329,-331,-259,-256,-101,-105,-116,-97,-89,-139,-73,-76,-73,-73,-72,-70,0,0,0,0,0,0,0,0,0,0]} 1. e4 {[%emt 0:00:49]} c6 {[%emt 0:00:14]} 2. d4 {[%emt 0:01:21]} d5 {[%emt 0:00:04]} 3. e5 {[%emt 0:00:17]} Bf5 {[%emt 0:00:06]} 4. h4 {[%emt 0:00:07]} Qb6 {[%emt 0:00:21]} 5. a4 {[%emt 0:00:04][%cal Ba2a4,Ba4a5][%mdl 32]} h5 {[%emt 0:01:18]} 6. a5 {[%emt 0:01:42] B12: Caro-Kann: Advance Variation.} Qc7 {[%emt 0:00:05]} 7. Nc3 {[%emt 0:17:45]} e6 {[%emt 0:02:40] [#]} 8. Bd3 $146 {[%emt 0:00:14]} ({Predecessor:} 8. Nf3 Nd7 9. Be2 a6 10. O-O c5 11. Bf4 Ne7 12. Qd2 Bg4 13. dxc5 Qxc5 {½-½ (13) Acs,P (2594)-Nagy,D (2353) Hungary 2019}) 8... Bxd3 {[%emt 0:06:47]} 9. cxd3 {[%emt 0:00:22]} Ne7 {[%emt 0:07:54]} 10. Nf3 {[%emt 0:05:09]} Nf5 {[%emt 0:00:25]} 11. O-O {[%emt 0:00:47]} Be7 {[%emt 0:12:12]} 12. g3 {[%emt 0:01:19]} a6 {[%emt 0:00:28]} 13. Kg2 {[%emt 0:00:20]} Nd7 {[%emt 0:00:35]} 14. Re1 {[%emt 0:01:52]} (14. Bd2 $142) 14... O-O-O {[%emt 0:06:22]} 15. Bd2 {[%emt 0:00:08][%cal Ob2b4]} Kb8 {[%emt 0:00:28]} 16. Ne2 {[%emt 0:06:18]} Ka8 {[%emt 0:07:30]} 17. Qa4 {[%emt 0:02:41]} Rdg8 {[%emt 0:04:23]} 18. Neg1 {[%emt 0:06:10]} (18. Rac1 $11) 18... f6 {[%emt 0:04:17]} 19. Nh3 {[%emt 0:14:16]} (19. Kf1 $15) 19... Nf8 {[%emt 0:07:26]} (19... g5 {looks sharper.} 20. hxg5 fxg5 21. Nfxg5 Nf8) 20. Kh2 {[%emt 0:13:41]} Bd8 {[%emt 0:11:52]} 21. Re2 $2 {[%emt 0:03:34] [#]} (21. Qb4 $17) 21... Qf7 $2 {[%emt 0:16:16]} (21... g5 $1 $19 {[%cal Rg5g4]} 22. hxg5 fxg5 23. Nhxg5 (23. Bxg5 $2 Nh7 $19) 23... Bxg5 24. Nxg5 (24. Bxg5 $2 h4 $19) 24... Nh7) 22. Rae1 {[%emt 0:05:38]} (22. Rc1 $1 $15) 22... g5 {[%emt 0:00:24]} 23. hxg5 {[%emt 0:05:44]} fxg5 {[%emt 0:00:05]} 24. Nfxg5 {[%emt 0:06:10]} Qg6 {[%emt 0:00:13]} 25. f4 {[%emt 0:03:04]} Nh6 {[%emt 0:01:59]} 26. Qa3 $2 {[%emt 0:01:00]} (26. Rg2 $17) 26... Nh7 $19 {[%emt 0:00:41]} (26... h4 $2 27. g4 Nxg4+ 28. Kg1 $19) 27. Qd6 $2 {[%emt 0:01:05]} (27. Rf1 h4 28. g4 (28. gxh4 $2 Nf5 $19) 28... Nxg4+ 29. Kg1) 27... Nxg5 {[%emt 0:00:46]} 28. fxg5 {[%emt 0:00:15]} Nf7 {[%emt 0:00:47]} 29. Qb4 {[%emt 0:02:31]} Bxg5 {[%emt 0:01:12]} ({Avoid the trap} 29... Nxg5 $2 30. Bxg5 Bxg5 31. Rg2 $19) 30. Rg2 {[%emt 0:00:34]} Qxd3 {[%emt 0:02:42]} 31. Qc3 {[%emt 0:00:24]} Qh7 {[%emt 0:01:11]} (31... Qf5 $19 {and Black stays clearly on top. aiming for ...Bxd2.} 32. Nxg5 Nxg5 33. Bxg5 Rxg5) 32. Bxg5 {[%emt 0:00:30]} Nxg5 {[%emt 0:00:04]} 33. Nxg5 {[%emt 0:00:06]} Rxg5 {[%emt 0:00:04]} 34. Rf1 {[%emt 0:00:07]} Rgg8 {[%emt 0:04:02]} (34... Qe7 $142 {Hoping for ...Rg4.} 35. Rgf2 Rg7) 35. Rf6 {[%emt 0:00:40]} Qe4 {[%emt 0:00:34] [#] ...h4 is the strong threat.} 36. Rf4 {[%emt 0:00:48]} Qg6 {[%emt 0:00:08]} 37. Rgf2 {[%emt 0:00:13]} h4 {[%emt 0:01:05]} (37... Qg5 $15) 38. g4 $11 {[%emt 0:00:10] The position is equal.} Rc8 {[%emt 0:01:00]} 39. Kh3 {[%emt 0:01:26]} Rhg8 {[%emt 0:00:17]} 40. b4 {[%emt 0:00:00]} Qb1 {[%emt 0:00:00]} 41. Rf1 {[%emt 0:02:29]} Qg6 {[%emt 0:02:31]} 42. R1f2 {[%emt 0:10:53] Black had all chances to win.  Weighted Error Value: White=0.34/Black=0.29 (precise)} 1/2-1/2

[Event "Romanian Superleague 2022"]
[Site "Oradea"]
[Date "2022.09.23"]
[Round "3.23"]
[White "Ileana, George"]
[Black "David, Alexandru-Vasile"]
[Result "1-0"]
[ECO "C55"]
[WhiteElo "2301"]
[BlackElo "2417"]
[Annotator "TA"]
[PlyCount "93"]
[EventDate "2022.09.21"]
[EventType "team-tourn"]
[EventCountry "ROU"]
[SourceTitle "playchess.com"]
[Source "ChessBase"]
[SourceQuality "1"]
[TimeControl "40/5400+30:1800+30"]

{[%evp 21,93,0,0,0,0,0,0,0,4,0,0,0,0,0,0,0,-15,-12,0,0,0,0,0,10,2,5,10,3,60,14,41,28,33,30,49,50,91,0,0,0,0,3,22,28,41,13,12,12,83,85,126,137,147,0,9,0,0,0,13,16,22,21,56,20,443,435,29973,29974,29972,29973,29973,29974,6103,6103]} 1. e4 {[%emt 0:00:04]} e5 {[%emt 0:00:09]} 2. Nf3 {[%emt 0:00:38]} Nc6 {[%emt 0:00:07]} 3. Bc4 {[%emt 0:00:49]} Nf6 {[%emt 0:00:13]} 4. d3 {[%emt 0:00:04]} Bc5 {[%emt 0:00:09]} 5. c3 {[%emt 0:00:07]} O-O {[%emt 0:00:14]} 6. O-O {[%emt 0:00:14]} d5 {[%emt 0:00:29]} 7. exd5 {[%emt 0:00:50]} Nxd5 {[%emt 0:00:08]} 8. Nbd2 {[%emt 0:00:31][%cal Bb1d2,Bd2e4,Be4g3][%mdl 32]} Nb6 {[%emt 0:01:16]} 9. Bb5 {[%emt 0:00:43]} Bd6 {[%emt 0:01:47]} 10. Re1 {[%emt 0:00:57]} Bg4 {[%emt 0:00:55]} 11. h3 {[%emt 0:00:36]} Bh5 {[%emt 0:00:08]} 12. Ne4 {[%emt 0:00:27] C55: Two Knights: 4 d3, 4 d4 exd4 5 e5 and Max Lange Attack.} f5 {[%emt 0:01:39]} 13. Ng3 {[%emt 0:01:46]} Bxf3 {[%emt 0:00:22]} 14. Qxf3 {[%emt 0:00:05] The position is equal.} Qd7 $1 {[%emt 0:00:07]} 15. a4 {[%emt 0:04:48] [#] And now a5 would win.} a6 {[%emt 0:01:44]} 16. Bxc6 {[%emt 0:00:21]} bxc6 {[%emt 0:00:06]} 17. a5 {[%emt 0:00:17]} Nd5 {[%emt 0:03:55]} 18. Ra4 {[%emt 0:00:44]} Rae8 {[%emt 0:08:56][%cal Oe5e4]} 19. Nf1 {[%emt 0:00:50] [#]} Bc5 $146 {[%emt 0:09:14][%cal Oe5e4]} ({Predecessor:} 19... e4 20. dxe4 fxe4 21. Qe2 Qf7 22. Be3 Re6 23. Rd4 Qf5 24. Rd2 Nxe3 25. Nxe3 Qxa5 {1-0 (42) Kuczynski,R (2490)-Arnaudov,P (2474) Germany 2016}) 20. Rc4 {[%emt 0:07:22]} e4 {[%emt 0:02:34]} 21. Qd1 {[%emt 0:04:57]} Ba7 {[%emt 0:02:34]} 22. dxe4 {[%emt 0:01:09]} fxe4 {[%emt 0:00:48]} 23. Be3 {[%emt 0:00:27]} Bxe3 {[%emt 0:00:27]} 24. fxe3 {[%emt 0:00:56]} Qd6 {[%emt 0:08:49]} ({Better is} 24... Re5 $11) 25. Qe2 {[%emt 0:02:45]} (25. Nd2 $14) 25... Re5 {[%emt 0:06:14]} 26. Nd2 {[%emt 0:03:30]} Qg6 {[%emt 0:04:53]} 27. Rf1 {[%emt 0:00:55]} Rxf1+ {[%emt 0:05:09]} 28. Nxf1 {[%emt 0:00:07]} h5 {[%emt 0:00:04]} 29. Rd4 {[%emt 0:02:36]} (29. b4 $16) 29... c5 $11 {[%emt 0:06:18]} 30. Rd2 {[%emt 0:00:26][%cal Bd4d2,Bd2f2,Bf2c2,Bc2c5][%mdl 32]} Kh7 {[%emt 0:00:23]} 31. Qc4 {[%emt 0:01:54][%csl LRc5,LRd5]} Ne7 {[%emt 0:01:17]} 32. b4 {[%emt 0:02:04]} Rg5 {[%emt 0:07:06]} 33. Rf2 {[%emt 0:05:54]} cxb4 {[%emt 0:04:07]} 34. cxb4 {[%emt 0:00:08]} Qc6 {[%emt 0:01:37] [#]} (34... Nc6 $11) 35. Rc2 $1 $16 {[%emt 0:04:14]} Qg6 {[%emt 0:06:27]} 36. Qxc7 {[%emt 0:04:05]} Nd5 {[%emt 0:01:28]} 37. Qb7 {[%emt 0:00:56]} (37. Qc4 $16) 37... Rf5 $132 {[%emt 0:03:06][%cal Of5f1][%mdl 2048] Strongly threatening ...Rxf1+! Black is not holding back} 38. Rc5 {[%emt 0:22:33]} Rg5 {[%emt 0:03:18]} 39. g4 {[%emt 0:01:17]} (39. Rxd5 $2 {is a self mate.} Rxg2+ 40. Kh1 Rg1+ 41. Kh2 Qg2#) 39... Qd6 {[%emt 0:03:29]} 40. Qf7 {[%emt 0:00:00] Black must now prevent h4.} hxg4 {[%emt 0:00:00]} 41. h4 {[%emt 0:03:13][%cal Bh3h4,Bh4h5][%mdl 32]} Re5 {[%emt 0:01:44]} 42. h5 $1 {[%emt 0:10:03][%cal Of7g6] Hoping for Qg6+!} ({Much weaker is} 42. Rc8 Ne7 43. Rc5 Rxc5 44. bxc5 Qxc5 $11) 42... Kh6 {[%emt 0:11:25][%mdl 8192] Prevents Qg6+. This move loses the game for Black.} (42... Rg5 $1 $11 {and Black has nothing to worry.}) 43. Ng3 $18 {[%emt 0:13:51]} Rg5 {[%emt 0:10:33]} (43... Qf6 $2 44. Qg6+ Qxg6 45. hxg6 $18) (43... g6 $18 44. Qxg6+ Qxg6 45. hxg6 Kxg6) 44. Nxe4 {[%emt 0:02:14]} Qe5 {[%emt 0:02:14]} 45. Nxg5 {[%emt 0:01:11][%csl Gh5][%cal Rf7g6]} Qxe3+ {[%emt 0:00:25]} 46. Qf2 {[%emt 0:00:07]} Qxg5 {[%emt 0:00:07]} 47. Qd4 {[%emt 0:00:50] Weighted Error Value: White=0.12 (very precise) /Black=0.37} 1-0

[Event "Romanian Superleague 2022"]
[Site "Oradea"]
[Date "2022.09.23"]
[Round "3.24"]
[White "Talu, Mircea"]
[Black "Pisu, Robert-Daniel"]
[Result "1-0"]
[ECO "D81"]
[WhiteElo "2331"]
[BlackElo "2223"]
[Annotator "TA"]
[PlyCount "25"]
[EventDate "2022.09.21"]
[EventType "team-tourn"]
[EventCountry "ROU"]
[SourceTitle "playchess.com"]
[Source "ChessBase"]
[SourceQuality "1"]
[TimeControl "40/5400+30:1800+30"]

{[%evp 10,25,29,31,41,30,115,115,105,133,114,86,175,187,178,183,435,443]} 1. d4 {[%emt 0:00:03]} Nf6 {[%emt 0:00:08]} 2. c4 {[%emt 0:00:08]} g6 {[%emt 0:00:11]} 3. Nc3 {[%emt 0:00:47]} d5 {[%emt 0:00:07]} 4. Qb3 {[%emt 0:00:41]} dxc4 {[%emt 0:09:36]} 5. Qxc4 {[%emt 0:00:09]} Bg7 {[%emt 0:00:25]} 6. e4 {[%emt 0:00:10]} a6 {[%emt 0:06:12] D81: Grünfeld: 4 Qb3.} 7. Bf4 {[%emt 0:12:41] [#]} Nh5 $146 {[%emt 0:13:45]} (7... b5 $11 8. Qxc7 Qxc7 9. Bxc7 Bb7) ({Predecessor:} 7... b5 8. Qxc7 Qxc7 9. Bxc7 Bb7 10. f3 O-O 11. Rd1 Rc8 12. Bxb8 Raxb8 13. Bd3 Nd7 14. Nge2 {0-1 (31) Deepan Chakkravarthy,J (2468)-Cori,J (2549) Montcada 2013}) 8. Bxc7 $16 {[%emt 0:01:40]} b5 {[%emt 0:06:52] White is better.} 9. Qc5 {[%emt 0:24:21]} Qd7 {[%emt 0:16:10]} (9... Qxd4 $2 10. Rd1 $1 Qxd1+ 11. Kxd1 $18) 10. Nd5 {[%emt 0:12:03] Nb6 is the strong threat. White has more active pieces.} Nc6 {[%emt 0:08:33] [#]} (10... Bb7 $16) 11. Be5 $1 $18 {[%emt 0:20:04] Hoping for Nc7+.} Bxe5 {[%emt 0:07:59]} 12. dxe5 {[%emt 0:00:31]} O-O $2 {[%emt 0:13:09] [#]} (12... Rb8 {was worth a try.} 13. Rd1 Qb7) 13. Qxc6 $3 {[%emt 0:00:30][%mdl 512] Weighted Error Value: White=0.00 (flawless) /Black=0.60} 1-0

[Event "Romanian Superleague 2022"]
[Site "Oradea"]
[Date "2022.09.23"]
[Round "3.25"]
[White "Deac, Bogdan-Daniel"]
[Black "Pranav Vijay"]
[Result "1-0"]
[ECO "A20"]
[WhiteElo "2710"]
[BlackElo "2265"]
[Annotator "TA"]
[PlyCount "78"]
[EventDate "2022.09.21"]
[EventType "team-tourn"]
[EventCountry "ROU"]
[SourceTitle "playchess.com"]
[Source "ChessBase"]
[SourceQuality "1"]
[TimeControl "40/5400+30:1800+30"]

{[%evp 9,78,0,11,0,0,0,0,0,0,0,0,-24,2,0,8,8,29,0,0,-7,-2,0,0,0,0,0,13,0,24,-11,12,0,18,25,19,13,14,10,22,15,38,31,104,102,138,121,114,127,131,121,115,122,114,113,123,91,113,119,857,272,239,250,311,350,345,338,337,330,315,308,271]} 1. c4 {[%emt 0:00:03]} e5 {[%emt 0:00:23]} 2. d3 {[%emt 0:00:22]} Nf6 {[%emt 0:02:27]} 3. Nf3 {[%emt 0:00:16]} Nc6 {[%emt 0:00:46]} 4. a3 {[%emt 1:31:49]} a5 {[%emt 0:02:51]} 5. Nc3 {[%emt 0:00:00]} g6 {[%emt 0:00:24]} 6. e3 {[%emt 0:00:00] A20: English Opening: 1...e5.} Bg7 {[%emt 0:02:00]} 7. Be2 {[%emt 0:00:00]} O-O {[%emt 0:04:18]} 8. O-O {[%emt 0:00:00] The position is equal.} d5 {[%emt 0:02:20]} 9. cxd5 {[%emt 0:00:00]} Nxd5 {[%emt 0:00:07]} 10. Bd2 {[%emt 0:00:00]} b6 {[%emt 0:11:14]} 11. Rc1 {[%emt 0:00:00]} Nde7 {[%emt 0:03:42]} 12. Qc2 {[%emt 0:00:00] [#]} Ba6 $146 {[%emt 0:01:48]} ({Predecessor:} 12... Bb7 13. Rfe1 Qd7 14. Rcd1 h6 15. Bc1 Rad8 16. b3 g5 17. Bb2 Ng6 18. Nd2 g4 {0-1 (51) Timofeev,A (2574)-Vokhidov,S (2536) Chess.com INT 2022}) 13. Rb1 {[%emt 0:00:00]} Qd6 {[%emt 0:05:28]} 14. Rfd1 {[%emt 0:00:00]} Rfd8 {[%emt 0:04:55][%cal Ra6d3]} 15. Be1 {[%emt 0:00:00]} h6 {[%emt 0:00:30]} 16. Rbc1 {[%emt 0:00:00]} Qe6 {[%emt 0:03:34]} 17. Qb1 {[%emt 0:00:00]} a4 {[%emt 0:11:41]} 18. Nd2 {[%emt 0:00:00]} Qd7 {[%emt 0:02:55][%cal Ra6d3]} 19. Nc4 {[%emt 0:00:00]} Qe8 {[%emt 0:02:23]} 20. Qc2 {[%emt 0:00:00]} Kh7 {[%emt 0:02:28]} 21. Qxa4 {[%emt 0:00:00]} b5 {[%emt 0:09:45]} 22. Nxb5 {[%emt 0:00:00]} Nd4 $1 {[%emt 0:00:13]} 23. exd4 {[%emt 0:00:00] [#] Nc3 is the strong threat.} Bxb5 {[%emt 0:00:14]} 24. Qc2 {[%emt 0:00:00]} Nf5 {[%emt 0:00:15]} 25. Bc3 {[%emt 0:00:00][%cal Rd4e5]} ({Not} 25. Nxe5 $2 Nxd4 26. Qd2 Qxe5 $19) 25... exd4 {[%emt 0:00:29]} ({Black should play} 25... Nxd4 $14 26. Bxd4 Rxd4) 26. Bb4 $16 {[%emt 0:00:00] Black must now prevent Re1.} Ba4 {[%emt 0:11:16]} 27. b3 {[%emt 0:00:00]} Bxb3 {[%emt 0:03:14]} 28. Qxb3 {[%emt 0:00:00]} Qxe2 {[%emt 0:00:07]} 29. Re1 $36 {[%emt 0:00:00][%mdl 2048] Keeping Black busy.} Qg4 {[%emt 0:00:21] Hoping for ...Nh4.} 30. Ne5 {[%emt 0:00:00]} Bxe5 {[%emt 0:00:12]} 31. Rxe5 {[%emt 0:00:00]} Rd7 {[%emt 0:00:09]} 32. h3 {[%emt 0:00:00]} Qf4 {[%emt 0:14:01][%csl LRc1,LRe5]} 33. Rce1 {[%emt 0:00:00] And now R5e4 would win.} Rad8 $2 {[%emt 0:00:00][%mdl 8192] Black cannot hold the game after this.} (33... Ng7 $16) 34. Qc4 $2 {[%emt 0:00:00]} (34. R5e4 Qg5 {[#]} 35. Be7 $1 {[%mdl 512]} Rxe7 36. Rxe7) 34... c5 $18 {[%emt 0:00:00]} 35. Qxc5 {[%emt 0:00:02] Threatens to win with Qc6.} Ng7 {[%emt 0:00:00]} 36. Qc6 {[%emt 0:05:57] White has a decisive advantage.} Ne6 {[%emt 0:00:00]} 37. g3 {[%emt 0:04:47]} Qf6 {[%emt 0:00:42]} 38. Ba5 {[%emt 0:00:49] Against Rc7} Rd6 {[%emt 0:01:44]} 39. Rxe6 $1 {[%emt 0:00:17]} ({Less strong is} 39. Bxd8 Qxe5 40. Rxe5 Rxc6 $16) 39... fxe6 {[%emt 0:01:04] Weighted Error Value: White=0.23 (precise) /Black=0.16 (very precise)} 1-0

[Event "Romanian Superleague 2022"]
[Site "Oradea"]
[Date "2022.09.23"]
[Round "3.26"]
[White "Grigore, George-Gabriel"]
[Black "Miroshnichenko, Evgenij"]
[Result "1/2-1/2"]
[ECO "E35"]
[WhiteElo "2455"]
[BlackElo "2597"]
[Annotator "TA"]
[PlyCount "36"]
[EventDate "2022.09.21"]
[EventType "team-tourn"]
[EventCountry "ROU"]
[SourceTitle "playchess.com"]
[Source "ChessBase"]
[SourceQuality "1"]
[TimeControl "40/5400+30:1800+30"]

{[%evp 12,36,21,10,20,31,29,31,35,25,50,59,65,54,91,74,77,42,83,96,130,133,121,114,113,104,65]} 1. d4 {[%emt 0:00:04]} Nf6 {[%emt 0:00:08]} 2. c4 {[%emt 0:00:08]} e6 {[%emt 0:00:06]} 3. Nc3 {[%emt 0:00:09]} Bb4 {[%emt 0:00:02]} 4. Qc2 {[%emt 0:00:24]} d5 {[%emt 0:01:22]} 5. cxd5 {[%emt 0:00:34]} exd5 {[%emt 0:00:22]} 6. Bg5 {[%emt 0:00:56][%cal Bc1g5,Bg5h4,Bh4g3][%mdl 32]} h6 {[%emt 0:00:59]} 7. Bh4 {[%emt 0:00:07]} g5 {[%emt 0:05:24] E35: Nimzo-Indian: Classical: 4...d5 5 cxd5 exd5.} 8. Bg3 {[%emt 0:00:30]} Ne4 {[%emt 0:00:32] 8...Nc6 is more advanced technology.} 9. e3 {[%emt 0:06:46]} h5 {[%emt 0:10:59] White is slightly better.} 10. f3 {[%emt 0:02:43]} Bxc3+ {[%emt 0:08:32]} 11. bxc3 {[%emt 0:00:26]} Nxg3 {[%emt 0:00:13]} 12. hxg3 {[%emt 0:00:12][%cal Bh2g3,Bg3g4][%mdl 32]} Qd6 {[%emt 0:01:47]} 13. g4 {[%emt 0:05:54]} h4 {[%emt 0:00:45] [#]} 14. Bd3 $146 {[%emt 0:02:58]} ({Predecessor:} 14. Nh3 Qe7 15. Kf2 O-O 16. Bd3 c5 17. Rae1 f6 18. e4 c4 19. Bf1 Qc7 20. e5 {1-0 (29) Ghazizadeh,A (1865)-Vagoohian,R (1770) Teheran 2014}) 14... c5 {[%emt 0:02:06]} 15. Nh3 {[%emt 0:03:05]} Rg8 {[%emt 0:03:01]} 16. O-O {[%emt 0:03:44]} Nc6 {[%emt 0:00:52]} 17. Rab1 {[%emt 0:03:12]} b6 {[%emt 0:09:41]} 18. Rfe1 {[%emt 0:14:21] Black must now prevent e4.} Be6 {[%emt 0:09:02] Weighted Error Value: White=0.04 (flawless) /Black=0.13 (very precise)} 1/2-1/2